bitfinex/quotes_SOLUSD_20241205
["timestamp","ask_amount","ask_price","bid_price","bid_amount"]
[1733376550037,6.5459,236.27,236.2,0.12549]
[1733376550239,6.5459,236.27,236.22,0.12549]
[1733376550627,6.5459,236.27,236.22,23.902374]
[1733376550828,6.5459,236.27,236.23,0.84428875]
[1733376551152,6.5459,236.27,236.23,0.12549]
[1733376553732,6.5459,236.27,236.17,0.84429618]
[1733376553931,6.5459,236.27,236.18,23.776884]
[1733376554132,6.5459,236.27,236.2,0.12549]
[1733376554427,1.6387,236.29,236.22,23.902374]
[1733376554660,1.6387,236.29,236.24,0.12549]
[1733376556336,1.6387,236.29,236.21,0.12549]
[1733376556737,1.6387,236.29,236.21,23.902374]
[1733376557737,1.6387,236.29,236.23,0.12549]
[1733376558140,1.6387,236.29,236.14,23.776884]
[1733376558453,1.6387,236.29,236.16,23.776884]
[1733376558631,1.6387,236.29,236.17,0.96998478]
[1733376561263,0.22867472,236.28,236.17,0.96998478]
[1733376561666,6.4273,236.27,236.09,0.84450665]
[1733376562163,0.22867472,236.26,236.1,0.12549]
[1733376562363,0.22867472,236.26,236.09,0.84450665]
[1733376562863,0.22867472,236.26,236.11,0.12549]
[1733376563159,0.22867472,236.26,236.11,23.902374]
[1733376563349,0.22867472,236.26,236.13,0.12549]
[1733376565145,23.776884,236.24,236.06,0.84467881]
[1733376565468,6.58997472,236.23,236.07,0.12549]
[1733376565957,23.776884,236.22,236.05,0.1014787]
[1733376566161,23.776884,236.2,236.05,0.1014787]
[1733376566666,23.776884,236.18,236.05,0.1014787]
[1733376569754,23.776884,236.16,236.05,0.1014787]
[1733376572654,5.45271234,236.15,236.05,0.1014787]
[1733376577356,1.5167,236.17,236.05,0.1014787]
[1733376577750,1.5167,236.17,236.06,0.12549]
[1733376578662,6.96941234,236.17,236.06,0.12549]
[1733376578862,1.5167,236.17,236.08,0.12549]
[1733376579467,1.5167,236.17,236.06,0.12549]
[1733376582369,6.96941234,236.17,236.06,0.12549]
[1733376582577,1.5167,236.17,236.06,0.12549]
[1733376583452,1.5167,236.17,236.08,0.12549]
[1733376584559,1.5167,236.17,236.06,23.902374]
[1733376584759,1.5167,236.17,236.06,0.12549]
[1733376585167,1.5167,236.17,236.05,0.1014787]
[1733376588876,1.5167,236.17,236.06,0.12549]
[1733376590392,1.5167,236.17,236.05,0.84501292]
[1733376590764,1.5167,236.17,236.06,0.12549]
[1733376591164,1.5167,236.17,236.08,23.902374]
[1733376591365,1.5167,236.17,236.1,0.12549]
[1733376591669,1.5167,236.17,236.11,0.84472425]
[1733376591870,1.5167,236.17,236.07,0.12549]
[1733376593291,1.5167,236.17,236.1,0.84471929]
[1733376593672,6.85188534,236.17,236.07,23.776884]
[1733376593874,1.5167,236.17,236.07,23.776884]
[1733376594477,1.5167,236.17,236.06,0.84476504]
[1733376594685,1.5167,236.17,236.05,23.776884]
[1733376595792,0.117527,236.16,236.05,23.776884]
[1733376596377,0.117527,236.16,235.98,0.84491742]
[1733376597595,0.117527,236.16,235.99,23.902374]
[1733376597771,0.117527,236.16,236.01,23.902374]
[1733376597969,0.117527,236.16,236.03,23.902374]
[1733376598166,0.117527,236.16,236.05,0.12549]
[1733376601297,0.117527,236.16,236.06,0.84494666]
[1733376601499,1.5167,236.17,236.07,23.776884]
[1733376601685,1.5167,236.17,236.08,0.84478624]
[1733376604988,6.00859661,236.17,236.08,0.84478624]
[1733376605181,6.00859661,236.17,236.07,23.776884]
[1733376605182,1.5167,236.17,236.07,23.776884]
[1733376606006,1.5167,236.17,235.99,43.902374]
[1733376606176,1.5167,236.17,236.01,23.902374]
[1733376606379,1.5167,236.17,236.03,23.902374]
[1733376606607,1.5167,236.17,236.05,23.902374]
[1733376606791,1.5167,236.17,236.06,0.844837]
[1733376609002,6.96941234,236.17,236.06,0.844837]
[1733376609927,1.5167,236.17,236.06,0.844837]
[1733376610215,5.45271234,236.16,236.06,0.844837]
[1733376613413,1.5167,236.17,236.07,23.902374]
[1733376613611,6.0313,236.19,236.09,23.902374]
[1733376613823,6.0313,236.19,236.11,0.12549]
[1733376614114,6.0313,236.19,236.13,0.12549]
[1733376614892,6.0313,236.19,236.13,0.84459558]
[1733376615904,6.0313,236.19,236.1,0.12549]
[1733376616412,23.776884,236.18,236.06,0.12549]
[1733376616597,23.776884,236.18,236.07,0.84475965]
[1733376617496,23.776884,236.18,236.08,0.84476924]
[1733376619408,23.776884,236.14,236.05,0.12549]
[1733376619591,23.776884,236.12,235.99,0.84490465]
[1733376620223,23.776884,236.1,236.0,0.12549]
[1733376620426,23.776884,236.1,236.02,0.12549]
[1733376621102,23.776884,236.1,235.92,1.2468]
[1733376621103,23.776884,236.08,235.92,0.84500829]
[1733376621307,23.776884,236.06,235.92,0.84500829]
[1733376621514,0.84459558,236.05,235.92,0.84500829]
[1733376621727,23.776884,236.06,235.93,0.12549]
[1733376621911,0.84459558,236.05,235.94,0.84531426]
[1733376622109,23.776884,236.04,235.94,0.84531426]
[1733376622318,0.84459558,236.03,235.94,0.84531426]
[1733376622497,23.776884,236.02,235.94,0.84531426]
[1733376622823,23.776884,236.02,235.9,0.94680398]
[1733376623129,23.776884,236.02,235.91,0.12549]
[1733376623328,23.776884,236.02,235.93,0.12549]
[1733376623536,23.776884,236.02,235.94,0.84531128]
[1733376624132,7.6366,236.01,235.94,0.84531128]
[1733376624433,23.776884,236.0,235.9,0.1014787]
[1733376624638,23.776884,235.98,235.9,0.1014787]
[1733376625134,23.776884,236.0,235.9,0.1014787]
[1733376625335,1.6399,235.97,235.9,0.1014787]
[1733376625514,23.776884,235.94,235.9,0.1014787]
[1733376625711,6.1232,235.95,235.83,0.4693699]
[1733376625712,1.6093,235.91,235.83,0.4693699]
[1733376625933,23.776884,235.9,235.83,0.4693699]
[1733376626922,1.6093,235.91,235.83,0.4693699]
[1733376631631,23.776884,235.9,235.83,0.4693699]
[1733376633224,23.776884,235.88,235.73,0.84576386]
[1733376633539,23.776884,235.86,235.69,0.12549]
[1733376633846,23.776884,235.84,235.71,0.12549]
[1733376634023,23.776884,235.84,235.73,0.12549]
[1733376634842,23.776884,235.84,235.71,0.12549]
[1733376635029,23.776884,235.84,235.71,0.9714897]
[1733376635530,1.6158,235.83,235.71,0.9714897]
[1733376635719,23.776884,235.82,235.71,0.9714897]
[1733376635924,23.776884,235.82,235.67,0.12549]
[1733376636237,23.776884,235.82,235.69,0.12549]
[1733376636436,23.776884,235.82,235.71,0.12549]
[1733376636644,23.776884,235.82,235.73,0.12549]
[1733376636850,23.776884,235.82,235.74,0.84600584]
[1733376637055,1.6158,235.83,235.75,0.12549]
[1733376637259,1.6158,235.83,235.76,0.84593673]
[1733376638121,1.6158,235.83,235.67,0.12549]
[1733376638317,1.6158,235.83,235.66,0.84593631]
[1733376638318,1.6158,235.83,235.71,20.0]
[1733376638531,1.6158,235.83,235.72,0.97142666]
[1733376640255,23.776884,235.82,235.72,0.97142666]
[1733376642182,23.776884,235.82,235.67,0.12549]
[1733376642466,23.776884,235.82,235.69,0.12549]
[1733376642639,23.776884,235.82,235.71,0.12549]
[1733376642959,23.776884,235.82,235.73,0.12549]
[1733376643953,1.6158,235.83,235.67,0.12549]
[1733376644158,1.6158,235.83,235.69,0.12549]
[1733376644359,1.6158,235.83,235.71,0.12549]
[1733376644532,1.6158,235.83,235.73,0.12549]
[1733376644736,1.6158,235.83,235.75,0.12549]
[1733376645736,1.6158,235.83,235.71,0.12549]
[1733376645939,1.6158,235.83,235.71,0.97135737]
[1733376646468,23.776884,235.81,235.71,0.84586737]
[1733376646650,23.776884,235.81,235.68,0.84607992]
[1733376647145,23.776884,235.81,235.69,0.12549]
[1733376647464,23.776884,235.81,235.71,0.12549]
[1733376647767,23.776884,235.81,235.73,0.12549]
[1733376648641,23.776884,235.81,235.73,0.8460742]
[1733376650256,6.1756,235.82,235.74,0.12549]
[1733376650450,6.1756,235.82,235.75,0.84593143]
[1733376651158,6.1756,235.82,235.76,0.12549]
[1733376651465,6.1756,235.82,235.77,0.84588781]
[1733376651667,6.1756,235.82,235.7,0.12549]
[1733376651870,24.62147958,235.81,235.72,0.12549]
[1733376652040,24.62147958,235.81,235.66,0.84614062]
[1733376653242,24.62147958,235.81,235.69,0.12549]
[1733376653449,24.62147958,235.81,235.69,0.97168814]
[1733376655663,23.776884,235.81,235.69,0.97168814]
[1733376655972,24.62147958,235.81,235.69,0.97168814]
[1733376656763,23.776884,235.81,235.69,0.97168814]
[1733376657077,0.84459558,235.8,235.69,0.97168814]
[1733376659182,23.776884,235.79,235.69,0.97168814]
[1733376659966,23.776884,235.81,235.69,0.97168814]
[1733376660168,23.776884,235.79,235.69,0.97168814]
[1733376660564,23.776884,235.81,235.69,0.97168814]
[1733376660772,23.776884,235.79,235.69,0.97168814]
[1733376661374,23.776884,235.81,235.69,0.97168814]
[1733376661572,23.776884,235.79,235.69,0.97168814]
[1733376661975,23.776884,235.81,235.69,0.97168814]
[1733376662185,23.776884,235.79,235.69,0.97168814]
[1733376662765,23.776884,235.81,235.69,0.97168814]
[1733376662968,0.84459558,235.8,235.69,0.97168814]
[1733376664467,0.84459558,235.8,235.64,0.12549]
[1733376664668,0.84459558,235.8,235.66,0.12549]
[1733376664973,0.84459558,235.8,235.68,0.12549]
[1733376665181,0.84459558,235.8,235.7,0.12549]
[1733376667203,0.84459558,235.8,235.63,0.84617474]
[1733376667204,1.57,235.78,235.63,0.84617474]
[1733376667389,0.84459558,235.77,235.64,0.84631182]
[1733376667568,23.776884,235.77,235.6,0.8462921]
[1733376667765,23.776884,235.77,235.61,0.12549]
[1733376667970,1.57,235.78,235.63,7.92549]
[1733376668171,1.57,235.78,235.65,0.12549]
[1733376668502,1.57,235.78,235.67,0.12549]
[1733376668688,1.57,235.78,235.69,0.12549]
[1733376668892,1.57,235.78,235.71,0.12549]
[1733376669405,1.57,235.78,235.73,0.12549]
[1733376670806,6.1756,235.82,235.75,0.12549]
[1733376671105,6.1756,235.82,235.77,0.12549]
[1733376672004,6.1756,235.82,235.71,0.84591923]
[1733376673007,6.1756,235.82,235.72,0.12549]
[1733376673184,6.1756,235.82,235.74,0.12549]
[1733376674212,6.1756,235.82,235.71,0.84604257]
[1733376674890,24.62147958,235.81,235.68,0.84604292]
[1733376675091,24.62147958,235.81,235.65,0.84625801]
[1733376675605,24.62147958,235.81,235.66,0.12549]
[1733376675984,24.62147958,235.81,235.65,0.84625801]
[1733376676185,23.776884,235.79,235.66,0.84625749]
[1733376676393,0.84459558,235.78,235.59,1.32990961]
[1733376676692,23.776884,235.77,235.59,1.32990961]
[1733376676895,23.776884,235.75,235.6,0.12549]
[1733376677100,23.776884,235.73,235.62,0.12549]
[1733376677411,0.84459558,235.72,235.62,0.12549]
[1733376677801,0.84459558,235.72,235.61,0.84645778]
[1733376678104,0.84459558,235.72,235.59,0.4834821]
[1733376678105,25.392384,235.71,235.59,1.3299457]
[1733376678315,0.84459558,235.7,235.6,0.12549]
[1733376678510,0.84459558,235.7,235.59,0.4834821]
[1733376679094,23.71855199,235.69,235.59,0.4834821]
[1733376679325,0.84459558,235.68,235.59,0.4834821]
[1733376681217,23.776884,235.67,235.59,0.4834821]
[1733376681401,0.84459558,235.66,235.59,0.4834821]
[1733376681601,0.84459558,235.68,235.59,0.4834821]
[1733376681803,23.776884,235.67,235.59,0.4834821]
[1733376682013,0.84459558,235.66,235.59,0.4834821]
[1733376682212,1.6155,235.71,235.59,0.4834821]
[1733376682213,23.776884,235.67,235.59,0.4834821]
[1733376682510,23.776884,235.65,235.59,0.4834821]
[1733376682819,23.776884,235.63,235.59,0.4834821]
[1733376683111,0.84459558,235.62,235.59,0.4834821]
[1733376683302,0.84459558,235.69,235.59,0.4834821]
[1733376683717,23.776884,235.68,235.59,0.4834821]
[1733376684022,23.776884,235.66,235.59,0.4834821]
[1733376684219,23.776884,235.64,235.59,0.4834821]
[1733376684421,0.84459558,235.63,235.59,0.4834821]
[1733376684728,23.776884,235.68,235.59,0.4834821]
[1733376684905,0.84459558,235.67,235.59,0.4834821]
[1733376685416,23.776884,235.66,235.59,0.4834821]
[1733376685616,23.776884,235.64,235.59,0.4834821]
[1733376686929,0.84459558,235.63,235.59,0.4834821]
[1733376687318,1.5773,235.61,235.49,0.84680369]
[1733376687515,24.62147958,235.6,235.49,0.84680369]
[1733376687719,24.62147958,235.6,235.46,0.84689655]
[1733376687912,24.62147958,235.6,235.43,1.2468]
[1733376688110,24.62147958,235.6,235.44,0.84703022]
[1733376688515,24.62147958,235.6,235.4,0.84704447]
[1733376688730,24.62147958,235.6,235.38,0.12549]
[1733376689026,24.62147958,235.6,235.37,0.84718111]
[1733376689027,24.62147958,235.6,235.4,0.12549]
[1733376689231,0.12549,235.57,235.36,0.4834821]
[1733376689435,0.12549,235.54,235.36,0.4834821]
[1733376689728,23.776884,235.52,235.36,0.4834821]
[1733376689929,1.6659,235.49,235.36,0.4834821]
[1733376690135,23.776884,235.47,235.36,0.4834821]
[1733376690430,23.776884,235.45,235.36,0.4834821]
[1733376690728,23.776884,235.43,235.36,0.4834821]
[1733376690930,0.84459558,235.46,235.36,0.4834821]
[1733376691109,23.776884,235.48,235.37,0.97299525]
[1733376691429,0.84459558,235.47,235.37,0.97299525]
[1733376692231,23.776884,235.46,235.36,0.4834821]
[1733376692422,23.776884,235.44,235.36,0.4834821]
[1733376692729,1.14581231,235.43,235.36,0.4834821]
[1733376692904,1.5352,235.4,235.33,0.84738641]
[1733376693107,24.62147958,235.39,235.25,9.68525704]
[1733376693604,24.62147958,235.39,235.26,0.12549]
[1733376694114,24.62147958,235.39,235.21,0.84774944]
[1733376694319,24.62147958,235.39,235.23,20.0]
[1733376694520,24.62147958,235.39,235.21,0.84774944]
[1733376694521,24.62147958,235.39,235.21,0.84779218]
[1733376695135,0.12549,235.38,235.21,0.84779218]
[1733376695318,23.776884,235.36,235.21,0.84779218]
[1733376695520,23.776884,235.34,235.13,0.4834821]
[1733376695709,6.1809,235.31,235.13,0.4834821]
[1733376695913,1.6159,235.28,235.13,0.4834821]
[1733376696242,23.776884,235.26,235.13,0.4834821]
[1733376696407,1.6159,235.28,235.13,0.4834821]
[1733376696408,0.84459558,235.25,235.13,0.4834821]
[1733376696609,23.776884,235.24,235.13,0.4834821]
[1733376696808,0.84459558,235.23,235.13,0.4834821]
[1733376697329,23.776884,235.22,235.13,0.4834821]
[1733376697526,0.84459558,235.21,235.13,0.4834821]
[1733376697713,23.82359878,235.2,235.13,0.4834821]
[1733376697925,0.84459558,235.19,235.13,0.4834821]
[1733376698120,23.776884,235.18,235.13,0.4834821]
[1733376698320,0.84459558,235.17,235.13,0.4834821]
[1733376698535,23.776884,235.18,235.13,0.4834821]
[1733376698739,0.04671478,235.16,235.13,0.4834821]
[1733376699518,23.776884,235.18,235.13,0.4834821]
[1733376700233,0.52164811,235.17,235.13,0.4834821]
[1733376700548,0.96494828,235.17,235.13,0.4834821]
[1733376702271,0.47954796,235.27,235.13,0.4834821]
[1733376702438,0.47954796,235.27,235.14,0.84817217]
[1733376702751,0.47954796,235.27,235.15,0.12549]
[1733376703328,1.6159,235.28,235.17,0.12549]
[1733376704127,1.6159,235.28,235.17,0.12549]
[1733376704329,1.6159,235.28,235.14,0.12549]
[1733376704651,1.6159,235.28,235.14,0.97354322]
[1733376706239,6.1809,235.31,235.14,0.97354322]
[1733376706455,0.47954796,235.3,235.14,0.97354322]
[1733376706861,1.6499,235.35,235.17,0.12549]
[1733376707161,1.6499,235.35,235.17,0.97327101]
[1733376707364,1.6499,235.35,235.19,0.12549]
[1733376707530,0.47954796,235.59,235.23,23.776884]
[1733376707531,1.6453,235.42,235.23,23.776884]
[1733376707738,1.6453,235.42,235.27,0.12549]
[1733376708063,1.6453,235.42,235.27,0.8474725]
[1733376708241,0.12549,235.4,235.18,20.0]
[1733376708561,0.47954796,235.39,235.2,0.12549]
[1733376708944,2.36935445,235.38,235.2,0.12549]
[1733376709267,0.47954796,235.37,235.2,0.12549]
[1733376709557,2.36935445,235.36,235.22,0.12549]
[1733376711028,0.47954796,235.35,235.21,0.84782591]
[1733376711443,24.25643196,235.41,235.21,0.84782591]
[1733376711761,0.87474256,235.34,235.21,0.84782591]
[1733376711944,0.87474256,235.34,235.18,0.12549]
[1733376712147,0.87474256,235.34,235.2,0.12549]
[1733376712759,6.3777,235.33,235.2,0.12549]
[1733376712964,0.47954796,235.32,235.2,0.12549]
[1733376713257,2.23004647,235.32,235.17,0.84795808]
[1733376715965,2.23004647,235.32,235.18,0.12549]
[1733376716166,2.23004647,235.32,235.2,0.12549]
[1733376716473,2.23004647,235.32,235.21,0.84789536]
[1733376717368,2.23004647,235.32,235.21,0.84789527]
[1733376718160,0.47954796,235.32,235.21,0.84789527]
[1733376718362,6.3777,235.33,235.18,0.12549]
[1733376718363,6.3777,235.33,235.2,20.0]
[1733376718769,6.3777,235.33,235.22,0.12549]
[1733376718942,0.47954796,235.4,235.16,20.0]
[1733376718943,6.567,235.39,235.23,0.84775029]
[1733376719264,2.42446685,235.38,235.17,0.84772396]
[1733376719769,2.42446685,235.38,235.18,0.12549]
[1733376720268,23.776884,235.37,235.18,0.12549]
[1733376720465,0.47954796,235.36,235.18,0.12549]
[1733376720661,2.42446685,235.36,235.18,0.12549]
[1733376720859,2.42446685,235.36,235.2,0.12549]
[1733376722180,2.42446685,235.36,235.22,0.12549]
[1733376722471,6.567,235.39,235.24,0.12549]
[1733376722673,6.567,235.39,235.26,23.902374]
[1733376722875,1.6453,235.42,235.34,0.12549]
[1733376723172,6.2756,235.46,235.34,0.97277359]
[1733376723360,1.5051,235.49,235.34,0.97277359]
[1733376723554,1.5051,235.49,235.34,0.84728359]
[1733376724170,1.5051,235.49,235.33,20.0]
[1733376724171,0.47954796,235.48,235.33,20.0]
[1733376724371,0.47954796,235.48,235.3,20.0]
[1733376724672,0.47954796,235.48,235.31,0.12549]
[1733376726147,24.25643196,235.48,235.31,0.12549]
[1733376727469,0.47954796,235.48,235.32,0.84749665]
[1733376727676,0.47954796,235.48,235.33,0.12549]
[1733376728578,0.47954796,235.48,235.32,0.12549]
[1733376730681,0.47954796,235.48,235.34,0.12549]
[1733376731585,0.47954796,235.48,235.32,0.12549]
[1733376733492,1.5051,235.49,235.34,0.12549]
[1733376733678,1.5051,235.49,235.36,0.12549]
[1733376733869,1.5051,235.49,235.38,0.12549]
[1733376734076,0.47954796,235.48,235.28,0.84712765]
[1733376734379,6.2583,235.46,235.29,0.12549]
[1733376734567,1.5673,235.44,235.29,0.12549]
[1733376734768,0.47954796,235.43,235.29,0.12549]
[1733376734973,2.5189393,235.43,235.25,0.84751057]
[1733376735182,2.5189393,235.43,235.22,0.84768008]
[1733376735492,31.705584,235.42,235.22,0.84768008]
[1733376735697,0.47954796,235.41,235.2,0.12549]
[1733376735863,23.776884,235.4,235.2,0.12549]
[1733376736065,0.47954796,235.39,235.22,0.12549]
[1733376736386,2.5189393,235.39,235.21,0.84781427]
[1733376736584,6.6194,235.37,235.16,0.84781983]
[1733376736892,1.5625,235.35,235.16,0.84781983]
[1733376737068,0.47954796,235.34,235.17,0.12549]
[1733376737270,24.25643196,235.34,235.16,0.84781983]
[1733376737672,6.3281,235.33,235.16,0.12549]
[1733376737891,0.47954796,235.32,235.15,0.8480988]
[1733376738293,8.0525,235.31,235.15,0.8480988]
[1733376738490,0.47954796,235.3,235.14,131.66569102]
[1733376739082,0.47954796,235.3,235.15,0.97361233]
[1733376740094,1.21498107,235.3,235.15,0.97361233]
[1733376740493,0.73543311,235.29,235.15,0.97361233]
[1733376740872,0.47954796,235.3,235.15,0.97361233]
[1733376741072,8.0525,235.31,235.15,0.97361233]
[1733376741591,8.78793311,235.31,235.15,0.97361233]
[1733376742094,8.0525,235.31,235.15,0.97361233]
[1733376742303,8.0525,235.31,235.2,0.12549]
[1733376742475,8.0525,235.31,235.2,0.97333853]
[1733376745917,7.7509,235.37,235.2,0.97333853]
[1733376746090,7.7509,235.37,235.22,0.12549]
[1733376746294,7.7509,235.37,235.25,0.12549]
[1733376746516,7.7509,235.37,235.25,0.97303488]
[1733376747007,2.2031545,235.47,235.29,27.8]
[1733376747212,0.47954796,235.56,235.32,20.0]
[1733376747513,0.47954796,235.56,235.34,0.12549]
[1733376747687,8.47413311,235.55,235.34,0.12549]
[1733376747888,0.47954796,235.54,235.36,0.12549]
[1733376748113,7.7127,235.55,235.38,0.12549]
[1733376748290,7.7127,235.55,235.42,20.12549]
[1733376748489,7.7127,235.55,235.44,0.12549]
[1733376748787,7.7127,235.55,235.46,0.12549]
[1733376749090,7.7127,235.55,235.48,0.12549]
[1733376749290,7.7127,235.55,235.5,0.12549]
[1733376749609,7.7127,235.55,235.51,0.84675149]
[1733376750219,7.7919,235.61,235.52,0.12549]
[1733376750514,7.7919,235.61,235.54,0.12549]
[1733376750715,7.7919,235.61,235.56,0.12549]
[1733376751027,7.7919,235.61,235.55,0.84661705]
[1733376751192,7.7919,235.61,235.48,0.84661609]
[1733376752497,1.23606537,235.6,235.48,0.84661609]
[1733376752903,1.23606537,235.6,235.45,0.846826]
[1733376753109,1.23606537,235.6,235.4,0.84696723]
[1733376753308,1.23606537,235.6,235.41,0.12549]
[1733376753491,23.776884,235.59,235.42,0.8469696]
[1733376753825,0.47954796,235.58,235.42,0.8469696]
[1733376754294,0.10262244,235.44,235.35,0.84717485]
[1733376754492,0.10262244,235.44,235.31,0.84721812]
[1733376754990,0.10262244,235.44,235.32,2.25019]
[1733376755195,0.10262244,235.44,235.33,0.84718454]
[1733376755800,0.10262244,235.44,235.36,0.12549]
[1733376756002,0.10262244,235.44,235.36,0.97249003]
[1733376756200,0.10262244,235.44,235.36,2.03459003]
[1733376757122,0.10262244,235.44,235.41,0.12549]
[1733376757417,0.10262244,235.44,235.41,0.97240641]
[1733376758403,0.10262244,235.44,235.43,0.12549]
[1733376758609,0.10262244,235.44,235.43,0.97232071]
[1733376758815,1.6487,235.53,235.44,0.12549]
[1733376759031,1.6487,235.53,235.46,0.12549]
[1733376759245,6.6486,235.57,235.48,0.12549]
[1733376759538,6.6486,235.57,235.5,0.12549]
[1733376759708,6.6486,235.57,235.52,0.12549]
[1733376759914,1.5609,235.59,235.52,0.12549]
[1733376760215,1.5609,235.59,235.5,0.12549]
[1733376760429,1.5609,235.59,235.5,0.9720838]
[1733376768443,1.5609,235.59,235.52,0.12549]
[1733376768631,1.5609,235.59,235.52,0.97207313]
[1733376769522,1.5609,235.59,235.54,0.12549]
[1733376769732,6.0819,235.63,235.54,0.12549]
[1733376770142,6.0819,235.63,235.54,0.9719964]
[1733376770339,1.6089,235.64,235.54,0.9719964]
[1733376771349,1.6089,235.64,235.54,2.0332964]
[1733376772047,1.6089,235.64,235.55,0.84641219]
[1733376772346,1.6089,235.64,235.56,0.12549]
[1733376772543,1.6089,235.64,235.58,0.12549]
[1733376772847,1.6089,235.64,235.6,0.12549]
[1733376773349,1.6089,235.64,235.59,0.84646927]
[1733376773518,1.6089,235.64,235.52,0.8465408]
[1733376773749,0.47954796,235.86,235.52,0.8465408]
[1733376773750,7.7685,235.8,235.53,0.12549]
[1733376774048,23.776884,235.77,235.55,0.12549]
[1733376774348,0.47954796,235.76,235.57,0.12549]
[1733376774558,3.98712475,235.76,235.59,0.12549]
[1733376774763,3.98712475,235.76,235.63,0.12549]
[1733376774950,3.98712475,235.76,235.63,0.97169086]
[1733376776073,1.634,235.78,235.63,0.97169086]
[1733376776648,0.81623759,235.77,235.63,0.97169086]
[1733376777475,0.98595981,235.77,235.63,0.97169086]
[1733376777651,24.25643196,235.76,235.64,0.84627775]
[1733376777848,23.776884,235.74,235.6,0.84638479]
[1733376778051,0.47954796,235.73,235.52,0.84653678]
[1733376778259,23.776884,235.71,235.52,0.84653678]
[1733376778572,0.47954796,235.7,235.52,0.84653678]
[1733376778747,23.776884,235.68,235.53,0.12549]
[1733376779082,0.47954796,235.67,235.54,0.84665996]
[1733376779368,0.47954796,235.67,235.5,0.12549]
[1733376779575,0.47954796,235.67,235.51,0.84672972]
[1733376780064,23.98096603,235.66,235.51,0.84672972]
[1733376780261,23.776884,235.65,235.52,0.12549]
[1733376780464,23.776884,235.65,235.54,0.12549]
[1733376780668,23.776884,235.65,235.55,0.84667109]
[1733376781259,0.20408203,235.66,235.56,0.12549]
[1733376781471,6.63,235.69,235.58,0.12549]
[1733376781669,6.63,235.69,235.59,0.84648249]
[1733376782077,6.63,235.69,235.6,0.12549]
[1733376782382,6.63,235.69,235.53,27.8]
[1733376782556,6.63,235.69,235.54,0.84637562]
[1733376783056,6.63,235.69,235.55,0.12549]
[1733376783256,6.63,235.69,235.56,0.84637985]
[1733376784895,1.5154,235.72,235.57,23.902374]
[1733376785066,1.5154,235.72,235.6,20.0]
[1733376785255,1.5154,235.72,235.61,0.84629279]
[1733376787463,23.776884,235.71,235.51,0.84639687]
[1733376787675,24.75643196,235.71,235.51,0.84639687]
[1733376788469,24.75643196,235.71,235.52,0.84661121]
[1733376788989,23.776884,235.69,235.53,0.12549]
[1733376789184,23.776884,235.67,235.55,0.12549]
[1733376789593,1.05139314,235.66,235.55,0.12549]
[1733376789767,1.05139314,235.66,235.57,0.12549]
[1733376791586,1.05139314,235.66,235.53,0.12549]
[1733376791790,23.776884,235.63,235.44,0.84661474]
[1733376792009,23.776884,235.61,235.43,0.05953558]
[1733376792299,1.5105,235.64,235.34,9.53365992]
[1733376792300,23.776884,235.59,235.34,9.53365992]
[1733376792460,23.776884,235.59,235.36,0.12549]
[1733376792461,23.776884,235.57,235.36,0.12549]
[1733376792664,1.5105,235.64,235.34,7.8]
[1733376792665,23.776884,235.55,235.37,0.84711309]
[1733376792882,23.776884,235.53,235.37,0.84711309]
[1733376793166,0.26417092,235.52,235.38,0.12549]
[1733376793366,0.26417092,235.52,235.4,0.12549]
[1733376793566,1.24371888,235.52,235.42,0.12549]
[1733376794186,0.26417092,235.52,235.39,0.12549]
[1733376794395,23.776884,235.53,235.41,0.12549]
[1733376794696,23.776884,235.53,235.43,0.12549]
[1733376794864,0.26417092,235.62,235.43,0.12549]
[1733376794865,0.97954796,235.61,235.43,0.12549]
[1733376795067,23.776884,235.6,235.45,0.12549]
[1733376795267,1.5105,235.64,235.47,0.12549]
[1733376795480,0.97954796,235.63,235.49,0.12549]
[1733376796282,0.97954796,235.63,235.37,27.8]
[1733376796489,23.776884,235.61,235.38,0.84709616]
[1733376796698,23.776884,235.59,235.39,0.12549]
[1733376796906,23.776884,235.57,235.4,0.8471555]
[1733376797076,23.776884,235.55,235.4,0.8471555]
[1733376797276,23.776884,235.53,235.36,0.8471863]
[1733376797480,23.776884,235.51,235.37,0.12549]